bitfinex-derivatives/quotes_SOLF0:USTF0_20250319
["timestamp","ask_amount","ask_price","bid_price","bid_amount"]
[1742389438199,12.78502892,127.32,127.27,12.78502892]
[1742389438406,7.8555,127.3,127.28,12.78502892]
[1742389439003,7.90530628,127.3,127.28,20.69620588]
[1742389439411,7.90530628,127.3,127.28,12.83980588]
[1742389439912,7.8559,127.29,127.28,0.05477696]
[1742389440612,0.04980628,127.3,127.28,0.05477696]
[1742389441121,7.90530628,127.3,127.28,0.05477696]
[1742389441410,6.44232074,127.3,127.28,0.05477696]
[1742389441607,12.8348352,127.3,127.28,7.81927937]
[1742389441810,7.8559,127.29,127.28,7.81927937]
[1742389442517,7.90530628,127.3,127.28,7.81927937]
[1742389442714,0.04980628,127.3,127.28,7.81927937]
[1742389443515,7.90540628,127.3,127.28,7.81927937]
[1742389443714,0.04980628,127.3,127.28,7.81927937]
[1742389443911,0.04980628,127.3,127.28,15.67567937]
[1742389444910,0.04980628,127.3,127.28,7.81927937]
[1742389445104,7.90530628,127.3,127.28,7.81927937]
[1742389446113,7.8559,127.29,127.28,7.81927937]
[1742389447616,20.64092892,127.29,127.28,7.81927937]
[1742389449522,20.64092892,127.29,127.28,0.05477696]
[1742389451019,14.24841446,127.29,127.28,0.05477696]
[1742389451726,38.82540628,127.3,127.28,0.05477696]
[1742389452223,7.90540628,127.3,127.28,0.05477696]
[1742389453215,0.04980628,127.3,127.28,7.91077696]
[1742389453417,0.04980628,127.3,127.28,20.69580588]
[1742389454626,7.90520628,127.3,127.28,12.83980588]
[1742389454826,7.90520628,127.3,127.28,0.05477696]
[1742389455029,0.04980628,127.3,127.28,0.05477696]
[1742389455336,7.8559,127.29,127.28,0.05477696]
[1742389455727,7.8559,127.29,127.28,7.81927937]
[1742389457638,7.90540628,127.3,127.28,7.81927937]
[1742389457839,0.04980628,127.3,127.28,7.81927937]
[1742389458031,7.8559,127.29,127.28,7.81927937]
[1742389459140,7.90540628,127.3,127.28,7.81927937]
[1742389460552,7.8559,127.29,127.28,7.81927937]
[1742389461050,20.64092892,127.29,127.28,0.05477696]
[1742389465549,7.90530628,127.3,127.28,0.05477696]
[1742389465746,0.04980628,127.3,127.28,0.05477696]
[1742389467056,12.8348352,127.3,127.28,7.81927937]
[1742389467355,12.8348352,127.3,127.28,0.05477696]
[1742389467555,7.8559,127.29,127.28,0.05477696]
[1742389467750,7.8559,127.29,127.28,7.81927937]
[1742389468458,20.64092892,127.29,127.28,7.81927937]
[1742389468649,20.64092892,127.29,127.28,0.05477696]
[1742389470057,51.52092892,127.29,127.28,0.05477696]
[1742389478859,20.64092892,127.29,127.28,0.05477696]
[1742389479058,51.52092892,127.29,127.28,0.05477696]
[1742389481662,38.7359,127.29,127.28,0.05477696]
[1742389481866,7.8559,127.29,127.28,0.05477696]
[1742389483159,30.92980628,127.3,127.28,0.05477696]
[1742389483362,0.04980628,127.3,127.28,7.91097696]
[1742389484066,0.04980628,127.3,127.28,12.83980588]
[1742389484767,0.04980628,127.3,127.29,7.8559]
[1742389485157,7.90530628,127.3,127.28,12.83980588]
[1742389485362,7.90530628,127.3,127.28,0.05477696]
[1742389486264,7.90530628,127.3,127.28,7.91117696]
[1742389486971,0.04980628,127.3,127.28,7.91117696]
[1742389487269,0.04980628,127.3,127.28,0.05477696]
[1742389487957,0.04980628,127.3,127.28,7.91077696]
[1742389489070,0.04980628,127.3,127.29,7.8559]
[1742389489274,0.04980628,127.3,127.28,7.81927937]
[1742389489463,0.04980628,127.3,127.28,28.46050829]
[1742389492670,0.04980628,127.3,127.29,7.8559]
[1742389493061,0.04980628,127.3,127.29,15.62040241]
[1742389494171,0.04980628,127.3,127.29,7.8559]
[1742389495076,0.04980628,127.3,127.28,7.91087696]
[1742389498167,0.04980628,127.3,127.29,7.8559]
[1742389498675,0.04980628,127.3,127.28,7.91097696]
[1742389499966,7.90510628,127.3,127.28,7.91097696]
[1742389500477,0.04980628,127.3,127.28,7.81927937]
[1742389500677,7.90540628,127.3,127.28,7.81927937]
[1742389501376,0.04980628,127.3,127.28,7.81927937]
[1742389501871,7.8388,127.35,127.28,7.81927937]
[1742389501872,7.853,127.34,127.31,7.8545]
[1742389502076,43.62502892,127.36,127.31,12.78502892]
[1742389502278,12.78502892,127.36,127.31,12.78502892]
[1742389502469,12.78502892,127.36,127.32,7.854]
[1742389502669,7.8523,127.35,127.32,7.854]
[1742389502867,7.8523,127.35,127.32,7.91032397]
[1742389503073,7.90217596,127.35,127.32,7.91032397]
[1742389503581,7.90217596,127.35,127.33,7.8533]
[1742389504279,7.90217596,127.35,127.32,7.91002397]
[1742389504673,7.8528,127.34,127.32,7.91002397]
[1742389505080,7.90247596,127.35,127.32,7.91002397]
[1742389505278,0.04987596,127.35,127.32,12.84135289]
[1742389505579,0.04987596,127.35,127.34,12.78502892]
[1742389506177,0.04987596,127.35,127.34,20.63782892]
[1742389506379,0.04987596,127.35,127.34,7.76450241]
[1742389507281,7.90207596,127.35,127.34,7.76450241]
[1742389507481,0.04987596,127.35,127.34,7.76450241]
[1742389508383,0.04987596,127.35,127.32,30.89632397]
[1742389508579,0.04987596,127.35,127.32,38.66082638]
[1742389508884,7.90237596,127.35,127.32,38.66082638]
[1742389509183,0.04987596,127.35,127.32,38.66082638]
[1742389509380,7.8528,127.34,127.32,38.66082638]
[1742389509575,0.04987596,127.35,127.32,38.66082638]
[1742389510384,7.853,127.34,127.32,38.66082638]
[1742389511281,7.90237596,127.35,127.32,38.66082638]
[1742389512083,0.04987596,127.35,127.32,38.66082638]
[1742389513978,0.04987596,127.35,127.32,46.51472638]
[1742389514881,0.04987596,127.35,127.32,38.66082638]
[1742389515186,12.78502892,127.33,127.32,7.82082638]
[1742389515387,20.63842892,127.33,127.32,0.05632397]
[1742389518389,7.8534,127.33,127.32,0.05632397]
[1742389519689,20.63812892,127.34,127.32,0.05632397]
[1742389519987,12.78502892,127.34,127.32,0.05632397]
[1742389520183,12.83490488,127.35,127.32,7.82082638]
[1742389520388,0.04987596,127.35,127.32,43.64135289]
[1742389520687,7.8528,127.34,127.32,30.85632397]
[1742389521287,7.90237596,127.35,127.32,38.71022397]
[1742389521486,0.04987596,127.35,127.32,43.64135289]
[1742389521686,0.04987596,127.35,127.33,12.78502892]
[1742389521886,0.04987596,127.35,127.33,20.63812892]
[1742389522487,0.04987596,127.35,127.33,7.8531]
[1742389523286,7.90207596,127.35,127.32,51.49505289]
[1742389524393,0.04987596,127.35,127.32,30.85632397]
[1742389524888,7.90247596,127.35,127.32,38.71032397]
[1742389526197,0.04987596,127.35,127.32,30.85632397]
[1742389526393,12.78502892,127.34,127.32,38.62082638]
[1742389526588,12.78502892,127.33,127.32,7.82082638]
[1742389526793,20.63842892,127.33,127.32,7.82082638]
[1742389528697,20.63842892,127.33,127.32,0.05632397]
[1742389531800,7.8569,127.28,127.25,30.78]
[1742389532200,7.8572,127.27,127.25,38.54450241]
[1742389532794,7.91697228,127.27,127.25,38.59997756]
[1742389533998,7.8577,127.26,127.25,7.81997756]
[1742389534192,20.64272892,127.26,127.25,0.05547515]
[1742389535205,20.64272892,127.26,127.25,7.515e-05]
[1742389535502,7.8608,127.22,127.2,30.78]
[1742389535700,12.78502892,127.23,127.2,30.78]
[1742389535901,12.78502892,127.24,127.2,38.54450241]
[1742389536101,20.64432892,127.24,127.2,38.54450241]
[1742389536601,0.055212,127.23,127.21,0.05518631]
[1742389537095,0.055212,127.23,127.21,7.81968872]
[1742389538003,12.78502892,127.32,127.22,12.78502892]
[1742389538194,339.66778921,127.35,127.29,12.78502892]
[1742389538394,18.39723401,127.33,127.31,12.78502892]
[1742389538593,70.47479962,127.34,127.32,301.82]
[1742389538801,11.56938021,127.36,127.33,12.78502892]
[1742389538993,359.0,127.48,127.35,12.78502892]
[1742389539194,318.4995118,127.49,127.45,12.78502892]
[1742389539401,1.36722587,127.48,127.46,30.78]
[1742389539594,318.4995118,127.49,127.47,12.78502892]
[1742389539795,0.05398582,127.48,127.47,12.78502892]
[1742389540192,210.48942398,127.5,127.47,31.48642469]
[1742389540393,371.78502892,127.62,127.49,12.78502892]
[1742389540599,359.0,127.62,127.56,12.78502892]
[1742389540795,359.0,127.62,127.56,43.56502892]
[1742389541205,30.78,127.64,127.56,30.78]
[1742389541406,7.8351,127.63,127.56,30.78]
[1742389541598,0.05975195,127.6,127.58,0.05194703]
[1742389541801,0.05975195,127.6,127.59,50.68035958]
[1742389542108,4.096,127.65,127.59,50.68035958]
[1742389542311,315.56347979,127.7,127.61,19.90035958]
[1742389542513,397.0,127.69,127.62,30.94]
[1742389542710,0.05266304,127.63,127.62,30.94]
[1742389543210,397.0,127.68,127.64,0.05959555]
[1742389543406,397.0,127.67,127.65,31.02]
[1742389543609,1.36350279,127.74,127.65,31.02]
[1742389543804,85.15136601,127.67,127.66,23.73757233]
[1742389544000,58.9114347,127.67,127.66,7.8328]
[1742389544206,16.85529636,127.67,127.66,7.8328]
[1742389544409,16.85529636,127.67,127.66,15.6728]
[1742389544606,0.0314624,127.68,127.67,7.8325]
[1742389544900,11.7109,127.79,127.66,116.49677692]
[1742389545114,32.02,127.78,127.7,7.8305]
[1742389545410,32.02,127.78,127.68,15.90477233]
[1742389545411,32.02,127.78,127.71,32.02]
[1742389545706,11.7109,127.79,127.71,47.94477233]
[1742389546108,0.05633128,127.76,127.73,7.88292911]
[1742389546309,0.05633128,127.76,127.73,0.05432911]
[1742389546709,32.3,127.79,127.73,0.05432911]
[1742389547213,32.3,127.79,127.74,165.56190034]
[1742389547415,40.1252,127.79,127.74,165.56190034]
[1742389547604,31.69496021,127.77,127.74,165.56190034]
[1742389547807,32.3,127.76,127.74,165.56190034]
[1742389548006,31.80954466,127.76,127.74,159.42070034]
[1742389548307,32.3,127.75,127.65,32.3]
[1742389548509,31.80954466,127.73,127.65,32.3]
[1742389548708,32.36,127.72,127.62,32.36]
[1742389548910,31.80954466,127.71,127.6,302.86]
[1742389549105,42.0,127.7,127.6,302.86]
[1742389549309,74.36,127.69,127.6,32.36]
[1742389549505,42.0,127.68,127.6,32.36]
[1742389549708,0.05227611,127.66,127.64,0.05899204]
[1742389550110,0.05227611,127.66,127.64,32.41899204]
[1742389550314,0.05227611,127.66,127.65,7.8337]
[1742389550810,32.36,127.72,127.64,32.41899204]
[1742389551315,32.4,127.74,127.64,32.36]
[1742389551516,31.80954466,127.75,127.7,7.8306]
[1742389551711,31.80954466,127.77,127.7,7.8306]
[1742389551907,302.82,127.79,127.71,32.45285677]
[1742389552111,0.05568224,127.74,127.72,7.8294]
[1742389552411,32.4,127.79,127.71,32.42]
[1742389552612,32.4,127.79,127.72,0.05361992]
[1742389552912,7.825,127.8,127.78,460.74921936]
[1742389553116,31.80954466,127.84,127.78,460.74921936]
[1742389553315,270.32,127.89,127.78,460.74921936]
[1742389553316,39.63164466,127.85,127.78,460.74921936]
[1742389553515,0.05151397,127.82,127.78,460.74921936]
[1742389553717,0.05151397,127.82,127.8,0.05886039]
[1742389554114,64.28105863,127.82,127.78,460.74921936]
[1742389554309,31.80954466,127.79,127.78,66.18290443]
[1742389554619,64.30954466,127.79,127.77,261.78932919]
[1742389554815,39.62954466,127.79,127.66,15.5328]
[1742389555016,15.90477233,127.72,127.59,7.7152]
[1742389555222,31.80954466,127.72,127.6,31.80954466]
[1742389555416,47.45894466,127.72,127.6,31.80954466]
[1742389555622,47.45894466,127.72,127.71,419.35629484]
[1742389555822,47.45894466,127.72,127.71,407.45189484]
[1742389556213,47.45894466,127.72,127.71,284.01309484]
[1742389556414,47.45894466,127.72,127.71,205.47229484]
[1742389556613,406.45894466,127.72,127.71,189.81229484]
[1742389556925,7.83,127.71,127.7,0.05372515]
[1742389557121,366.82,127.72,127.59,7.7152]
[1742389557320,270.29704632,127.73,127.66,39.15]
[1742389557517,270.24,127.73,127.67,39.15]
[1742389557713,51.71646472,127.72,127.65,39.15]
[1742389557921,51.71646472,127.72,127.6,3.7425]
[1742389558115,51.71646472,127.72,127.63,39.15]
[1742389558324,7.8329,127.67,127.63,39.15]
[1742389558526,0.05972997,127.67,127.65,0.05183834]
[1742389558720,0.05972997,127.67,127.65,3.834e-05]
[1742389558927,51.71646472,127.66,127.53,51.71646472]
[1742389559125,175.85871914,127.63,127.55,39.15]
[1742389559327,7.8378,127.59,127.55,39.15]
[1742389559630,175.85871914,127.63,127.55,15.66]
[1742389559929,175.85871914,127.63,127.55,39.15]
[1742389560128,175.85871914,127.63,127.56,39.15]
[1742389560330,206.90375738,127.59,127.58,0.05053521]
[1742389560524,214.74115738,127.59,127.58,0.05053521]
[1742389560725,206.90375738,127.59,127.58,0.05053521]
[1742389560929,214.74115738,127.59,127.58,0.05053521]
[1742389561528,7.8388,127.57,127.5,51.71646472]
[1742389561729,206.90375738,127.59,127.5,67.37646472]
[1742389562226,206.90375738,127.59,127.53,51.71646472]
[1742389562435,51.71646472,127.8,127.56,51.71646472]
[1742389562436,82.75954568,127.66,127.56,51.71646472]
[1742389562729,51.71646472,127.64,127.51,51.71646472]
[1742389562930,51.71646472,127.61,127.59,1.732e-05]
[1742389563131,0.05705143,127.62,127.59,1.732e-05]
[1742389563332,82.75954568,127.66,127.54,51.71646472]
[1742389563528,321.95646472,127.65,127.54,51.71646472]
[1742389563734,270.24,127.65,127.54,51.71646472]
[1742389564036,51.71646472,127.68,127.57,51.71646472]
[1742389564231,0.05295211,127.61,127.58,0.05308791]
[1742389564430,0.05295211,127.61,127.59,7.837]
[1742389564627,7.8327,127.67,127.57,51.71646472]
[1742389564833,173.2038046,127.71,127.62,51.71646472]
[1742389565035,173.2038046,127.71,127.62,34.21360281]
[1742389565334,173.2038046,127.71,127.63,3.8435]
[1742389565835,173.2038046,127.71,127.63,19.5035]
[1742389566037,0.05613803,127.68,127.66,0.05695792]
[1742389567529,0.05613803,127.68,127.66,15.71695792]
[1742389567727,0.05613803,127.68,127.66,0.05695792]
[1742389567935,7.8325,127.67,127.66,0.05695792]
[1742389568727,0.05613803,127.68,127.66,0.05695792]
[1742389569125,7.8325,127.67,127.66,5.792e-05]
[1742389569732,59.54896472,127.67,127.66,5.792e-05]
[1742389569929,51.71646472,127.67,127.58,3.884]
[1742389570241,51.71646472,127.65,127.58,15.66]
[1742389570736,51.71646472,127.63,127.53,7.6112]
[1742389571040,51.71646472,127.63,127.53,23.2712]
[1742389571233,0.04933368,127.59,127.57,0.05248496]
[1742389571539,7.8386,127.58,127.53,31.1122]
[1742389571732,51.71646472,127.63,127.53,23.2712]
[1742389571933,0.05545076,127.59,127.57,0.05052905]
[1742389573431,0.05545076,127.59,127.57,15.71052905]
[1742389573630,31.21660502,127.64,127.57,51.76699377]
[1742389573830,206.90375738,127.61,127.57,51.76699377]
[1742389574037,206.90375738,127.61,127.59,51.71646472]
[1742389574234,206.90375738,127.61,127.56,30.57610356]
[1742389574438,206.90375738,127.61,127.58,51.71646472]
[1742389574636,206.90375738,127.61,127.58,67.37646472]
[1742389574833,178.92735738,127.61,127.58,51.71646472]
[1742389575439,178.92735738,127.61,127.6,7.8368]
[1742389575642,178.97793536,127.61,127.6,7.8368]
[1742389575845,0.05057798,127.61,127.6,7.8368]
[1742389576544,32.00493604,127.69,127.6,7.84]
[1742389576835,32.00493604,127.69,127.65,51.71646472]
[1742389577040,32.00493604,127.69,127.65,59.54996472]
[1742389577342,32.00493604,127.69,127.65,51.71646472]
[1742389577540,32.00493604,127.69,127.63,85.17646472]
[1742389577740,0.05411338,127.68,127.66,0.05402774]
[1742389578737,0.05411338,127.68,127.66,2.774e-05]
[1742389578938,59.54896472,127.67,127.66,2.774e-05]
[1742389579241,51.71646472,127.67,127.54,355.59646472]
[1742389579445,51.71646472,127.65,127.54,355.59646472]
[1742389579736,33.56,127.66,127.54,355.59646472]
[1742389579737,326.03756472,127.68,127.56,51.71646472]
[1742389579934,7.8334,127.66,127.59,7.8369]
[1742389580131,274.3211,127.68,127.6,51.71646472]
[1742389580132,33.58,127.67,127.6,51.71646472]
[1742389580333,33.58,127.67,127.6,85.31646472]
[1742389580539,0.05356825,127.65,127.62,0.05108078]
[1742389580839,33.58,127.7,127.62,51.7675455]
[1742389581037,33.58,127.7,127.63,33.6]
[1742389581239,33.58,127.7,127.64,51.71646472]
[1742389581644,33.58,127.7,127.63,33.6]
[1742389582143,0.05038904,127.68,127.66,0.05863998]
[1742389582641,7.8325,127.67,127.66,0.05863998]
[1742389583242,41.50248904,127.68,127.66,0.05863998]
[1742389583535,33.67038904,127.68,127.66,0.05863998]
[1742389584441,41.50258904,127.68,127.66,0.05863998]
[1742389585034,7.8325,127.67,127.66,0.05863998]
[1742389585235,33.67038904,127.68,127.66,0.05863998]
[1742389585438,7.88268904,127.68,127.66,0.05863998]
[1742389585639,0.05038904,127.68,127.66,0.05863998]
[1742389586038,7.8325,127.67,127.66,0.05863998]
[1742389586240,0.05038904,127.68,127.66,0.05863998]
[1742389586645,7.88228904,127.68,127.66,0.05863998]
[1742389586836,0.05038904,127.68,127.66,0.05863998]
[1742389587334,7.8297,127.72,127.66,0.05863998]
[1742389587542,32.00493604,127.75,127.67,51.71646472]
[1742389587736,33.5,127.74,127.67,55.42346472]
[1742389588237,32.00493604,127.75,127.67,55.42346472]
[1742389588442,32.00493604,127.75,127.7,51.71646472]
[1742389588733,32.00493604,127.75,127.7,33.57032008]
[1742389588936,7.8289,127.73,127.7,41.40092008]
[1742389589138,32.00493604,127.75,127.7,33.57032008]
[1742389589545,7.8282,127.74,127.7,41.40062008]
[1742389589739,32.00493604,127.75,127.7,33.57032008]
[1742389589945,0.0562729,127.73,127.7,33.57032008]
[1742389590140,0.0562729,127.73,127.71,7.8296]
[1742389590337,0.0562729,127.73,127.7,33.57032008]
[1742389590543,32.00493604,127.75,127.72,7.8289]
[1742389590839,25.85513604,127.75,127.72,51.71646472]
[1742389591039,7.40793604,127.75,127.73,33.52]
[1742389591442,40.92793604,127.81,127.73,33.52]
[1742389591638,7.8265,127.77,127.73,41.3484]
[1742389591834,0.05917939,127.75,127.73,33.57250633]
[1742389592044,7.40793604,127.81,127.73,33.57250633]
[1742389592249,7.8247,127.8,127.76,7.8264]
[1742389592642,7.40793604,127.81,127.73,85.23646472]
[1742389592840,15.23213604,127.81,127.78,7.8257]
[1742389593037,15.23213604,127.81,127.76,33.48]
[1742389593248,7.45742945,127.81,127.78,0.05385178]
[1742389593442,7.8255,127.79,127.78,0.05385178]
[1742389594147,85.19646472,127.8,127.71,4.0963]
[1742389594543,7.8268,127.77,127.71,4.0963]
[1742389595043,7.8268,127.77,127.73,7.8286]
[1742389595243,0.05462818,127.75,127.73,0.05963222]
[1742389595645,7.8282,127.74,127.73,0.05963222]
[1742389597752,7.88242818,127.75,127.73,0.05963222]
[1742389597949,0.05462818,127.75,127.73,0.05963222]
[1742389598455,0.05462818,127.75,127.73,7.88803222]
[1742389598956,0.05462818,127.75,127.73,0.05963222]
[1742389599452,0.05462818,127.75,127.74,7.8282]
[1742389599753,3.8588,127.83,127.74,33.44]
[1742389599948,33.42,127.82,127.74,33.44]
[1742389600154,33.44,127.83,127.75,51.71646472]
[1742389600455,51.71646472,127.81,127.71,51.71646472]
[1742389600647,33.66,127.8,127.73,3.695]
[1742389600851,0.05219418,127.77,127.75,0.05056215]
[1742389601657,7.87899418,127.77,127.75,0.05056215]
[1742389601848,0.05219418,127.77,127.75,0.05056215]
[1742389604254,0.05219418,127.77,127.75,7.87806215]
[1742389604466,0.05219418,127.77,127.75,0.05056215]
[1742389604756,51.71646472,127.86,127.76,51.71646472]
[1742389604956,33.58,127.86,127.76,51.71646472]
[1742389605363,7.824,127.81,127.76,51.71646472]
[1742389605657,33.58,127.86,127.76,51.71646472]
[1742389605962,0.0574421,127.8,127.77,0.05050531]
[1742389606161,3.7833,127.89,127.78,85.23646472]
[1742389606363,7.8213,127.86,127.82,7.8228]
[1742389606565,7.8213,127.86,127.79,33.52]
[1742389606764,37.3033,127.89,127.79,33.52]
[1742389606961,3.7833,127.89,127.8,51.71646472]
[1742389607465,0.05012215,127.86,127.83,0.05843703]
[1742389607761,33.98911997,127.9,127.84,33.52]
[1742389608063,10.72752327,127.94,127.84,85.23646472]
[1742389608263,10.72752327,127.94,127.86,51.71646472]
[1742389608466,7.817,127.93,127.89,7.8187]
[1742389608665,10.72752327,127.94,127.87,33.5]
[1742389609063,0.05525625,127.92,127.89,0.05215844]
[1742389609463,7.87285625,127.92,127.89,0.05215844]
[1742389609658,0.05525625,127.92,127.89,0.05215844]
[1742389610468,7.8182,127.91,127.89,0.05215844]
[1742389610671,0.05525625,127.92,127.89,0.05215844]
[1742389610979,7.8184,127.9,127.89,0.05215844]
[1742389611277,41.2784,127.9,127.89,0.05215844]
[1742389612176,85.17646472,127.9,127.83,33.46]
[1742389612376,3.6916,127.89,127.83,33.46]
[1742389612565,7.8186,127.9,127.83,33.46]
[1742389612769,33.44,127.93,127.84,51.71646472]
[1742389612965,33.44,127.93,127.85,3.8913]
[1742389613374,0.05642855,127.9,127.88,0.05157095]
[1742389613777,3.6916,127.96,127.89,33.46]
[1742389613980,37.15,127.99,127.9,51.71646472]
[1742389614183,37.15,127.99,127.92,7.8171]
[1742389614367,37.15,127.99,127.9,51.71646472]
[1742389614873,14.41752327,127.99,127.9,51.71646472]
[1742389615076,0.0509994,127.96,127.93,0.05913259]
[1742389615276,0.0509994,127.96,127.93,33.51913259]
[1742389615981,10.72752327,127.99,127.94,51.71646472]
[1742389616677,85.3464961,128.01,127.98,51.71646472]
[1742389616875,186.07002319,128.03,128.02,7.8111]
[1742389617173,186.07002319,128.03,127.99,33.42]
[1742389617382,186.07002319,128.03,128.01,0.05867867]
[1742389617778,219.59002319,128.03,127.93,269.8]
[1742389617968,51.71646472,128.02,127.93,269.8]
[1742389618174,51.71646472,128.0,127.9,85.23646472]
[1742389618475,33.64,128.0,127.9,85.23646472]
[1742389618877,7.8139,127.98,127.92,51.71646472]
[1742389619078,0.0546516,127.96,127.94,0.05355952]
[1742389619582,3.6802,128.01,127.94,0.05355952]
[1742389619780,0.05223921,127.96,127.94,0.05355952]
[1742389619980,3.6802,128.01,127.94,0.05355952]
[1742389620282,0.05289335,127.96,127.94,0.05355952]
[1742389620477,3.8906,128.03,127.94,51.77002424]
[1742389620677,33.64,128.09,127.99,25.85823236]
[1742389620885,41.4074,128.1,128.0,59.49823236]
[1742389621180,41.4074,128.1,127.99,25.85823236]
[1742389621181,51.71646472,128.09,128.03,0.05645561]
[1742389621372,0.0519417,128.06,128.03,0.05645561]
[1742389621578,7.8099,128.04,128.03,0.05645561]
[1742389621784,51.71646472,128.05,127.97,33.64]
[1742389622580,7.8122,128.01,127.97,33.64]
[1742389623082,33.6,128.03,127.98,0.05021209]
[1742389623382,3.7005,128.02,127.98,0.05021209]
[1742389624179,0.05150826,128.01,127.98,0.05021209]
[1742389624579,0.05150826,128.01,127.99,25.85823236]
[1742389624777,0.05150826,128.01,128.0,41.3923]
[1742389625176,41.4463,128.08,128.02,7.8109]
[1742389625983,41.4463,128.08,128.01,7.8114]
[1742389626180,41.4463,128.08,128.0,33.58]
[1742389626379,0.05676882,128.06,128.03,0.05956124]
[1742389626781,33.6,128.05,127.97,59.45823236]
[1742389627377,7.8663,128.08,128.02,7.8111]
[1742389627378,41.4863,128.08,128.02,7.8111]
[1742389627972,7.8663,128.08,128.03,7.8104]
[1742389628178,0.04949805,128.06,128.04,0.05338517]
[1742389628581,0.04949805,128.06,128.04,7.86298517]
[1742389628780,0.04949805,128.06,128.04,0.05338517]
[1742389629084,37.578,128.12,128.04,25.91161753]
[1742389629282,3.978,128.12,128.04,25.91161753]
[1742389629589,3.978,128.12,128.06,25.85823236]
[1742389629788,3.978,128.12,128.06,59.45823236]
[1742389629990,3.978,128.12,128.06,33.6]
[1742389630292,0.05322093,128.1,128.08,0.05141527]
[1742389630582,7.85982093,128.1,128.08,0.05141527]
[1742389630785,0.05322093,128.1,128.08,0.05141527]
[1742389632380,0.05322093,128.1,128.08,7.85851527]
[1742389632787,0.05322093,128.1,128.08,0.05141527]
[1742389634192,7.8068,128.09,128.08,0.05141527]
[1742389634692,0.05322093,128.1,128.08,0.05141527]
[1742389635590,0.05322093,128.1,128.09,7.8068]
[1742389635792,15.5949,128.25,128.09,7.8068]
[1742389635793,33.78,128.2,128.09,59.51823236]
[1742389636094,37.6302,128.18,128.09,59.51823236]
[1742389636293,37.6302,128.18,128.1,25.85823236]
[1742389636690,37.6302,128.18,128.09,59.51823236]
[1742389636896,0.03019077,128.15,128.13,0.05182819]
[1742389637195,33.87019077,128.15,128.09,33.66]
[1742389637889,0.03019077,128.15,128.09,59.51823236]
[1742389638283,0.03019077,128.15,128.11,0.05255368]
[1742389638488,0.03019077,128.15,128.12,59.69823236]
[1742389638889,41.5699,128.21,128.13,25.85823236]
[1742389639087,7.7499,128.21,128.14,25.85823236]
[1742389639296,3.9513,128.23,128.16,25.85823236]
[1742389639297,11.7498,128.23,128.16,25.85823236]
[1742389639595,3.9513,128.23,128.17,25.85823236]
[1742389639986,3.9002,128.27,128.19,25.85823236]
[1742389640191,3.9513,128.3,128.22,25.85823236]
[1742389640390,3.9513,128.3,128.23,25.85823236]
[1742389640391,2.819e-05,128.24,128.23,25.85823236]
[1742389640794,7.7957,128.28,128.25,0.0502891]
[1742389640990,3.9513,128.3,128.23,25.85823236]
[1742389641198,3.9513,128.3,128.21,25.85823236]
[1742389641399,7.7956,128.28,128.22,7.7986]
[1742389641596,3.9513,128.3,128.2,63.73823236]
[1742389641795,3.9513,128.3,128.24,0.055441]
[1742389642097,55.66776472,128.3,128.24,0.055441]
[1742389642296,51.71646472,128.28,128.24,0.055441]
[1742389642597,51.71646472,128.26,128.16,25.85823236]
[1742389642791,3.7732,128.25,128.15,295.17823236]
[1742389642991,3.7732,128.25,128.15,269.32]
[1742389643191,3.7732,128.25,128.14,39.96]
[1742389643597,40.2,128.28,128.16,51.71646472]
[1742389643794,0.05546919,128.21,128.18,51.71646472]
[1742389643993,7.7949,128.29,128.22,7.7983]
[1742389644193,44.0932,128.35,128.25,51.71646472]
[1742389644389,48.1178,128.35,128.27,51.71646472]
[1742389644897,51.71646472,128.34,128.25,40.36]
[1742389645097,51.71646472,128.34,128.3,0.04955809]
[1742389645300,51.71646472,128.32,128.22,40.44]
[1742389645497,40.42,128.31,128.25,7.7965]
[1742389645697,40.7,128.33,128.24,51.71646472]
[1742389645894,7.7978,128.35,128.26,51.71646472]
[1742389646097,7.7978,128.35,128.27,40.7]
[1742389646494,0.0479876,128.32,128.3,0.05697518]
[1742389647188,0.0479876,128.32,128.24,309.74]
[1742389647394,92.33646472,128.31,128.21,44.5396]
[1742389647590,92.33646472,128.31,128.21,40.62]
[1742389647896,51.71646472,128.29,128.21,40.62]
[1742389648288,51.71646472,128.29,128.18,92.29646472]
[1742389648494,0.05083381,128.26,128.24,0.05301706]
[1742389649198,4.02573381,128.26,128.18,40.58]
[1742389649594,3.9749,128.26,128.15,41.08]
[1742389649799,51.71646472,128.25,128.14,320.77646472]